bitfinex/quotes_SOLUSD_20241020
["timestamp","ask_amount","ask_price","bid_price","bid_amount"]
[1729464335282,25.0974,165.99,165.94,1.20474261]
[1729464335579,25.0974,165.99,165.93,6.03302547]
[1729464336075,25.0974,165.99,165.93,5.93302547]
[1729464336559,25.0974,165.99,165.93,0.2]
[1729464337261,25.0974,165.99,165.96,0.1]
[1729464338975,25.0974,165.99,165.95,6.03302547]
[1729464339172,25.0974,165.99,165.94,5.93302547]
[1729464339564,25.0974,165.99,165.96,0.1]
[1729464339769,25.0974,165.99,165.95,5.93302547]
[1729464339989,25.0974,165.99,165.94,5.83302547]
[1729464340485,25.0974,165.99,165.93,5.83302547]
[1729464341299,25.0974,165.99,165.94,4.39942035]
[1729464341891,25.0974,165.99,165.95,10.23244582]
[1729464342073,25.0974,165.99,165.96,4.39942035]
[1729464343291,25.0974,165.99,165.97,2.75233462]
[1729464343601,25.0974,165.99,165.98,2.75233462]
[1729464345581,25.0974,165.99,165.93,4.39942035]
[1729464345805,25.0974,165.99,165.94,4.39942035]
[1729464346103,25.0974,165.99,165.92,4.39942035]
[1729464346398,25.0974,165.99,165.93,4.39942035]
[1729464346602,25.0974,165.99,165.89,5.83302547]
[1729464346603,25.0974,165.99,165.9,10.23244582]
[1729464346896,25.0974,165.99,165.91,4.39942035]
[1729464347075,25.0974,165.99,165.92,4.40980891]
[1729464347473,25.0974,165.99,165.9,5.82668131]
[1729464347787,25.0974,165.99,165.89,4.40980891]
[1729464347788,25.0974,165.99,165.91,4.40980891]
[1729464347983,25.0974,165.99,165.92,4.40980891]
[1729464348186,25.0974,165.99,165.9,4.40980891]
[1729464348405,25.0974,165.99,165.91,7.15371222]
[1729464348580,23.776884,165.98,165.89,4.40980891]
[1729464348896,23.776884,165.98,165.9,4.40980891]
[1729464349077,23.776884,165.98,165.89,4.40980891]
[1729464349275,23.776884,165.98,165.9,4.40980891]
[1729464349484,23.776884,165.98,165.89,4.40980891]
[1729464349791,9.6591,165.93,165.88,4.40980891]
[1729464350005,23.776884,165.92,165.85,4.40980891]
[1729464350191,23.776884,165.92,165.83,4.40980891]
[1729464350382,24.68098359,165.92,165.8,5.82668131]
[1729464350578,9.5591,165.89,165.81,4.40980891]
[1729464350900,9.5591,165.89,165.78,10.23649022]
[1729464351096,9.5591,165.89,165.79,4.40980891]
[1729464351484,9.5591,165.89,165.78,4.40980891]
[1729464351485,10.4632947,165.89,165.78,4.40980891]
[1729464351683,10.4632947,165.89,165.77,5.92668131]
[1729464351684,10.4632947,165.89,165.79,10.23649022]
[1729464351888,10.4632947,165.89,165.8,4.40980891]
[1729464352183,10.4632947,165.89,165.8,4.50980891]
[1729464352386,10.4632947,165.89,165.82,5.92668131]
[1729464352387,9.5591,165.89,165.82,5.92668131]
[1729464352699,9.5591,165.89,165.83,10.33649022]
[1729464352872,9.5591,165.89,165.84,4.40980891]
[1729464353381,9.5591,165.89,165.85,4.40980891]
[1729464353577,9.5591,165.89,165.84,10.23649022]
[1729464354102,9.5591,165.89,165.84,4.40980891]
[1729464354302,9.5591,165.89,165.84,10.23649022]
[1729464355096,9.5591,165.89,165.83,5.73651958]
[1729464355398,9.5591,165.89,165.83,15.9730098]
[1729464355598,9.5591,165.89,165.84,5.82668131]
[1729464356694,9.5591,165.89,165.85,5.82668131]
[1729464357711,9.5591,165.89,165.86,2.74369982]
[1729464357999,9.5591,165.89,165.87,2.74380023]
[1729464358202,9.5591,165.89,165.88,2.74380023]
[1729464358892,23.0102,165.91,165.88,2.74380023]
[1729464359097,8.819,165.93,165.89,2.7423888]
[1729464359296,8.819,165.93,165.9,2.7423888]
[1729464359603,8.819,165.93,165.91,2.74155086]
[1729464359794,8.819,165.93,165.92,2.74155086]
[1729464360191,23.8891,165.95,165.89,8.56823217]
[1729464360404,8.819,165.97,165.9,3.94670945]
[1729464360591,8.819,165.97,165.91,8.56823217]
[1729464360793,8.819,165.97,165.92,8.56823217]
[1729464360998,8.819,165.97,165.93,2.74155086]
[1729464361179,8.819,165.97,165.94,2.74155086]
[1729464361496,8.819,165.97,165.95,2.74155086]
[1729464361805,9.72286188,165.97,165.96,2.74128424]
[1729464361980,9.72286188,165.97,165.89,5.82668131]
[1729464361981,9.72286188,165.97,165.9,2.74128424]
[1729464362185,9.72286188,165.97,165.91,2.74128424]
[1729464362399,9.72286188,165.97,165.92,2.74128424]
[1729464362578,9.72286188,165.97,165.93,2.74128424]
[1729464362781,9.72286188,165.97,165.94,2.74128424]
[1729464362981,9.72286188,165.97,165.89,5.82668131]
[1729464362982,9.72286188,165.97,165.95,2.74128424]
[1729464363207,9.72286188,165.97,165.96,2.74128424]
[1729464363887,9.72286188,165.97,165.91,2.74128424]
[1729464364084,9.72286188,165.97,165.92,2.74128424]
[1729464364298,9.72286188,165.97,165.93,5.48485682]
[1729464364510,9.72286188,165.97,165.91,5.82668131]
[1729464364511,9.72286188,165.97,165.94,2.74128424]
[1729464364809,8.819,165.97,165.95,2.74128424]
[1729464364984,8.819,165.97,165.96,2.74128424]
[1729464365382,23.5845,165.99,165.96,2.74128424]
[1729464365605,23.5845,165.99,165.91,7.131627]
[1729464365606,502.49292566,166.0,165.97,2.74128424]
[1729464365902,502.49292566,166.0,165.98,2.74128424]
[1729464366204,502.49292566,166.0,165.99,2.74128424]
[1729464366379,502.49292566,166.0,165.95,2.74128424]
[1729464366585,502.49292566,166.0,165.93,5.82668131]
[1729464366586,502.49292566,166.0,165.96,2.74128424]
[1729464366888,502.49292566,166.0,165.97,2.74128424]
[1729464367097,502.49292566,166.0,165.93,5.82668131]
[1729464367098,502.49292566,166.0,165.98,2.74128424]
[1729464367300,502.49292566,166.0,165.99,2.74128424]
[1729464367901,502.49292566,166.0,165.98,2.74128424]
[1729464368087,502.49292566,166.0,165.99,2.74128424]
[1729464368288,502.49292566,166.0,165.97,2.74128424]
[1729464368493,502.49292566,166.0,165.98,2.74128424]
[1729464368705,502.49292566,166.0,165.99,2.74128424]
[1729464369293,502.49292566,166.0,165.96,8.66796555]
[1729464369509,502.49292566,166.0,165.97,2.74128424]
[1729464369708,502.49292566,166.0,165.98,2.74128424]
[1729464369905,502.49292566,166.0,165.99,2.74128424]
[1729464370807,502.49292566,166.0,165.98,2.74128424]
[1729464371006,502.49292566,166.0,165.99,2.74128424]
[1729464371407,502.49292566,166.0,165.98,2.74128424]
[1729464371613,502.49292566,166.0,165.99,2.74128424]
[1729464371808,502.49292566,166.0,165.98,2.74128424]
[1729464372124,502.49292566,166.0,165.99,2.74128424]
[1729464374006,502.49292566,166.0,165.97,2.74128424]
[1729464374196,502.49292566,166.0,165.98,2.74128424]
[1729464374423,502.49292566,166.0,165.99,2.74128424]
[1729464374591,502.49292566,166.0,165.97,2.74128424]
[1729464374792,502.49292566,166.0,165.98,2.74128424]
[1729464374995,502.49292566,166.0,165.95,5.92668131]
[1729464374996,502.49292566,166.0,165.99,2.74128424]
[1729464375396,502.49292566,166.0,165.96,8.56796555]
[1729464375616,502.49292566,166.0,165.97,2.74128424]
[1729464375815,502.49292566,166.0,165.96,5.82668131]
[1729464375816,502.49292566,166.0,165.98,2.74128424]
[1729464376038,502.49292566,166.0,165.99,2.74128424]
[1729464377516,502.49292566,166.0,165.99,2.74699225]
[1729464377709,502.49292566,166.0,165.99,2.74711002]
[1729464382097,502.49292566,166.0,165.99,7.34274438]
[1729464382297,502.49292566,166.0,165.99,13.16571105]
[1729464382600,502.49292566,166.0,165.99,7.34274438]
[1729464383422,502.49292566,166.0,165.99,13.1579987]
[1729464383423,491.65276106,166.0,165.99,13.1579987]
[1729464383644,467.17126106,166.0,165.99,37.14215657]
[1729464383925,467.17126106,166.0,165.99,42.95741089]
[1729464384124,467.17126106,166.0,165.99,38.56177653]
[1729464384634,467.17126106,166.0,165.99,32.74487194]
[1729464384797,467.17126106,166.0,165.99,38.77487194]
[1729464384997,467.17126106,166.0,165.99,41.5174528]
[1729464385198,467.17126106,166.0,165.99,38.77487194]
[1729464385414,467.17126106,166.0,165.99,44.58280977]
[1729464385617,467.17126106,166.0,165.99,38.55280977]
[1729464385827,467.17126106,166.0,165.99,44.58280977]
[1729464386426,465.88163182,166.0,165.99,44.58280977]
[1729464386621,465.88163182,166.0,165.99,38.77487194]
[1729464386928,465.88163182,166.0,165.99,32.74487194]
[1729464387721,459.62747584,166.0,165.99,38.54937254]
[1729464387929,459.62747584,166.0,165.99,32.74487194]
[1729464388598,459.62747584,166.0,165.99,38.54315988]
[1729464388804,459.62747584,166.0,165.99,68.59026727]
[1729464390325,459.62747584,166.0,165.99,88.59026727]
[1729464390532,432.67467584,166.0,165.99,96.74421332]
[1729464390703,290.64477551,166.0,165.99,101.7729519]
[1729464390906,75.34934906,166.0,165.99,99.24926814]
[1729464391110,67.15416392,166.0,165.99,98.68520964]
[1729464391333,24.43416392,166.0,165.99,98.63231703]
[1729464391537,24.43416392,166.0,165.99,95.88685728]
[1729464391829,24.43416392,166.0,165.99,110.49069033]
[1729464392018,0.04645782,166.05,166.04,0.2]
[1729464392226,0.04645782,166.05,166.04,27.44625328]
[1729464392819,0.04645782,166.05,166.04,40.41418651]
[1729464393019,0.43829204,166.1,166.09,0.2]
[1729464393224,0.43829204,166.1,166.09,2.93682447]
[1729464393833,9.075,166.21,166.12,0.1]
[1729464394210,9.075,166.21,166.13,0.1]
[1729464394419,8.24024447,166.21,166.13,0.1]
[1729464394748,8.24024447,166.21,166.14,0.2]
[1729464395231,8.24024447,166.21,166.16,0.1]
[1729464395415,8.24024447,166.21,166.16,0.2]
[1729464396015,8.24024447,166.21,166.16,0.1]
[1729464396223,8.24024447,166.21,166.15,0.1]
[1729464396410,8.24024447,166.21,166.16,0.1]
[1729464396612,8.24024447,166.21,166.16,23.876884]
[1729464396811,8.24024447,166.21,166.18,23.776884]
[1729464397022,8.24024447,166.21,166.19,2.7188257]
[1729464397240,0.09250542,166.25,166.19,2.7188257]
[1729464397414,9.4759,166.24,166.19,2.7188257]
[1729464397610,9.4759,166.24,166.16,0.2]
[1729464398928,9.4759,166.24,166.17,0.1]
[1729464399112,9.4759,166.24,166.17,23.876884]
[1729464399314,9.4759,166.24,166.19,23.776884]
[1729464399529,9.4759,166.24,166.2,2.70757816]
[1729464399726,9.4759,166.24,166.17,23.976884]
[1729464400036,9.4759,166.24,166.2,0.1]
[1729464400213,9.4759,166.24,166.21,23.876884]
[1729464400414,0.09250542,166.25,166.21,26.6842609]
[1729464400731,0.1122939,166.22,166.21,26.6842609]
[1729464400930,0.09250542,166.25,166.24,20.2]
[1729464401121,3.88507016,166.27,166.26,0.2]
[1729464401434,3.88507016,166.27,166.26,106.4460744]
[1729464401610,34.15772585,166.49,166.35,0.2]
[1729464401933,34.15772585,166.49,166.36,8.66578035]
[1729464402113,34.15772585,166.49,166.37,2.7073769]
[1729464402314,34.15772585,166.49,166.37,2.8073769]
[1729464402509,33.2565,166.49,166.39,0.2]
[1729464402814,32.7565,166.49,166.39,0.1]
[1729464403419,32.7565,166.49,166.39,2.8073769]
[1729464403625,32.7565,166.49,166.4,0.1]
[1729464403936,32.7565,166.49,166.39,2.8073769]
[1729464404626,32.7565,166.49,166.38,19.78]
[1729464404627,32.7565,166.49,166.4,23.776884]
[1729464404818,32.7565,166.49,166.39,23.776884]
[1729464405526,32.7565,166.49,166.38,19.68]
[1729464405727,32.7565,166.49,166.38,19.78]
[1729464405928,32.7565,166.49,166.39,0.1]
[1729464406815,32.7565,166.49,166.39,23.876884]
[1729464407316,32.7565,166.49,166.39,23.776884]
[1729464407934,32.8565,166.49,166.38,19.68]
[1729464408129,32.7565,166.49,166.38,19.68]
[1729464408309,32.8565,166.49,166.38,19.68]
[1729464408514,32.7565,166.49,166.38,19.68]
[1729464408714,32.7565,166.49,166.38,19.78]
[1729464408931,32.7565,166.49,166.39,0.1]
[1729464409140,32.7565,166.49,166.39,23.876884]
[1729464411114,32.7565,166.49,166.39,23.776884]
[1729464411430,32.8565,166.49,166.38,19.68]
[1729464411637,0.1,166.48,166.38,19.68]
[1729464411942,0.1,166.47,166.38,19.68]
[1729464412162,0.1,166.48,166.38,19.68]
[1729464412444,0.1,166.47,166.38,19.68]
[1729464412628,0.1,166.48,166.38,19.68]
[1729464413026,0.1,166.47,166.38,19.68]
[1729464413639,0.1,166.46,166.38,19.68]
[1729464413848,0.1,166.47,166.38,19.68]
[1729464414219,0.1,166.48,166.34,8.081211]
[1729464414540,32.8565,166.49,166.38,9.38581734]
[1729464415344,32.8565,166.49,166.35,7.71422479]
[1729464415345,32.8565,166.49,166.36,23.776884]
[1729464415640,32.2565,166.49,166.36,23.776884]
[1729464415818,32.2565,166.49,166.38,23.776884]
[1729464416019,32.2565,166.49,166.38,41.24391234]
[1729464416220,32.2565,166.49,166.38,41.34391234]
[1729464416521,32.2565,166.49,166.4,23.776884]
[1729464416738,32.2565,166.49,166.4,31.39110879]
[1729464417122,32.2565,166.49,166.4,7.61422479]
[1729464417321,32.2565,166.49,166.35,6.03]
[1729464417528,32.2565,166.49,166.35,14.111211]
[1729464417737,32.3565,166.49,166.35,14.111211]
[1729464418254,32.2565,166.49,166.36,16.62813945]
[1729464418542,32.2565,166.49,166.36,16.52813945]
[1729464419359,32.2565,166.49,166.36,23.88915313]
[1729464420144,32.2565,166.49,166.37,26.81]
[1729464420362,32.2565,166.49,166.38,8.72586656]
[1729464421845,32.2565,166.49,166.37,26.81]
[1729464421846,0.1,166.48,166.37,26.81]
[1729464422524,0.1,166.48,166.36,7.36101368]
[1729464423046,0.1,166.48,166.34,8.72586656]
[1729464423446,32.4565,166.49,166.34,8.72586656]
[1729464423745,0.1,166.48,166.34,8.72586656]
[1729464423935,32.3565,166.49,166.34,8.72586656]
[1729464423936,0.1,166.47,166.34,8.72586656]
[1729464424123,32.2565,166.49,166.34,8.72586656]
[1729464424319,32.2565,166.49,166.35,11.03931734]
[1729464424537,32.2565,166.49,166.36,8.72586656]
[1729464424938,32.2565,166.49,166.37,10.93931734]
[1729464425147,32.2565,166.49,166.36,16.08688024]
[1729464425331,32.2565,166.49,166.37,8.72586656]
[1729464425734,32.2565,166.49,166.37,27.12619758]
[1729464425924,32.2565,166.49,166.38,16.08688024]
[1729464426947,32.2565,166.49,166.38,21.74782121]
[1729464427445,32.2565,166.49,166.39,5.66094097]
[1729464428238,32.2565,166.49,166.4,5.66094097]
[1729464430329,32.2565,166.49,166.41,10.93931734]
[1729464430551,32.2565,166.49,166.41,16.60025831]
[1729464430932,31.04421213,166.49,166.41,10.93931734]
[1729464432031,31.04421213,166.49,166.42,2.0778608]
[1729464432353,31.04421213,166.49,166.41,10.93931734]
[1729464432868,31.04421213,166.49,166.42,2.0778608]
[1729464433038,31.04421213,166.49,166.41,10.93931734]
[1729464433760,31.04421213,166.49,166.38,16.08688024]
[1729464434436,31.04421213,166.49,166.38,27.02619758]
[1729464434630,31.04421213,166.49,166.39,10.93931734]
[1729464434837,31.04421213,166.49,166.39,19.6651839]
[1729464435041,31.04421213,166.49,166.4,8.72586656]
[1729464435355,31.04421213,166.49,166.41,11.03931734]
[1729464435562,37.7186,166.53,166.43,0.1]
[1729464435762,0.6122939,166.55,166.47,0.1]
[1729464435936,0.6122939,166.55,166.48,27.02619758]
[1729464436656,0.6122939,166.55,166.49,0.1]
[1729464436861,0.6122939,166.55,166.52,0.1]
[1729464437034,0.6122939,166.55,166.53,18.39599752]
[1729464437230,0.6122939,166.55,166.54,0.2]
[1729464437434,0.6122939,166.55,166.54,91.69675367]
[1729464437663,0.6122939,166.55,166.54,101.53829306]
[1729464438134,37.7186,166.71,166.56,0.1]
[1729464438456,37.7186,166.71,166.57,25.92841963]
[1729464438755,37.7186,166.71,166.58,20.1]
[1729464438962,37.7186,166.71,166.59,17.20255307]
[1729464439255,0.6122939,166.72,166.63,0.1]
[1729464439456,0.6122939,166.72,166.64,25.92841963]
[1729464439837,0.6122939,166.72,166.61,5.3702]
[1729464439838,0.6122939,166.72,166.61,0.1]
[1729464440031,0.6122939,166.72,166.64,7.36101368]
[1729464440262,0.6122939,166.72,166.64,16.18688024]
[1729464440561,0.6122939,166.72,166.65,44.10841963]
[1729464440742,0.6122939,166.72,166.65,17.20255307]
[1729464440946,0.6122939,166.72,166.65,9.84153939]
[1729464441140,0.6122939,166.72,166.62,0.1]
[1729464441339,0.6122939,166.72,166.63,8.72586656]
[1729464441857,0.6122939,166.72,166.63,18.56740595]
[1729464442053,0.6122939,166.72,166.64,9.84153939]
[1729464442766,0.6122939,166.72,166.58,5.3702]
[1729464442937,0.7122939,166.72,166.57,16.08688024]
[1729464443140,0.4123839,166.72,166.58,18.56740595]
[1729464443539,0.1,166.71,166.58,18.56740595]
[1729464443865,0.1,166.7,166.58,18.56740595]
[1729464444039,0.1,166.7,166.58,8.72586656]
[1729464444457,0.4123839,166.72,166.58,8.72586656]
[1729464444657,0.1,166.7,166.58,8.72586656]
[1729464445243,0.1,166.7,166.59,2.07574041]
[1729464445438,0.1,166.7,166.59,18.56740595]
[1729464445959,0.3123839,166.72,166.57,7.36101368]
[1729464445960,0.1,166.71,166.57,7.36101368]
[1729464446260,0.1,166.7,166.57,16.08688024]
[1729464446458,0.1,166.7,166.58,2.6644706]
[1729464446656,28.0065,166.68,166.57,16.08688024]
[1729464446867,10.5707,166.67,166.54,1.20011442]
[1729464447168,10.5707,166.67,166.55,11.39092923]
[1729464447366,10.5707,166.67,166.55,8.72586656]
[1729464447662,10.5707,166.67,166.56,11.96263156]
[1729464447846,10.5707,166.67,166.57,8.72586656]
[1729464448050,10.5707,166.67,166.58,9.29574679]
[1729464448446,0.1,166.66,166.54,7.36101368]
[1729464448646,0.1,166.66,166.45,12.9366]
[1729464448647,0.2,166.62,166.45,12.9366]
[1729464448967,38.4772,166.61,166.47,7.36101368]
[1729464449169,38.4772,166.61,166.48,20.69175636]
[1729464449345,38.4772,166.61,166.49,11.23163473]
[1729464449544,38.4772,166.61,166.5,11.39600957]
[1729464449745,38.4772,166.61,166.51,2.67014301]
[1729464450466,0.3123839,166.72,166.52,26.68320335]
[1729464450467,38.4772,166.66,166.52,26.68320335]
[1729464450662,38.5772,166.66,166.53,2.67014301]
[1729464450865,38.5772,166.66,166.54,7.36101368]
[1729464451071,0.1,166.62,166.55,2.67014301]
[1729464451254,0.1,166.62,166.45,11.396009]
[1729464451255,0.1,166.62,166.56,2.07611428]
[1729464451461,0.1,166.61,166.48,18.02161335]
[1729464451663,0.1,166.61,166.49,2.67652203]
[1729464451970,0.1,166.61,166.5,8.72586656]
[1729464452172,0.1,166.61,166.51,2.67394985]
[1729464452477,0.1,166.62,166.51,11.39981641]
[1729464452478,0.2,166.62,166.51,11.39981641]
[1729464452668,28.1065,166.59,166.52,2.67394985]
[1729464452865,0.1,166.58,166.45,6.9522359]
[1729464453172,28.1065,166.59,166.46,20.69967555]
[1729464453374,28.1065,166.59,166.47,2.6780622]
[1729464453375,28.2065,166.59,166.47,2.6780622]
[1729464453690,0.2,166.58,166.47,2.6780622]
[1729464453846,0.1,166.56,166.47,2.6780622]
[1729464454169,0.1,166.56,166.48,2.6780622]
[1729464454359,0.1,166.56,166.49,2.6780622]
[1729464454550,0.1,166.56,166.5,2.6780622]
[1729464454748,0.1,166.56,166.45,6.9522359]
[1729464454975,0.2,166.57,166.46,2.68486237]
[1729464455378,0.1,166.56,166.46,2.68486237]
[1729464455672,0.2,166.57,166.47,2.6882461]
[1729464455970,0.2,166.57,166.48,2.6882461]
[1729464456170,28.0065,166.59,166.49,2.6882461]
[1729464456171,28.90703628,166.59,166.49,2.6882461]
[1729464456467,28.90703628,166.59,166.5,2.07686243]
[1729464456668,28.90703628,166.59,166.51,2.6882461]
[1729464456853,28.90703628,166.59,166.49,8.72586656]
[1729464456854,28.90703628,166.59,166.52,2.6882461]
[1729464457054,28.90703628,166.59,166.53,2.6882461]
[1729464457255,28.90703628,166.59,166.54,2.6882461]
[1729464457465,28.90703628,166.59,166.49,8.72586656]
[1729464457671,28.90703628,166.59,166.5,2.69396584]
[1729464458162,29.00703628,166.59,166.5,2.69396584]
[1729464458354,29.10703628,166.59,166.51,2.69396584]
[1729464458556,0.1,166.56,166.52,2.69396584]
[1729464458747,0.2,166.57,166.44,8.72586656]
[1729464458948,0.2,166.57,166.45,11.99510948]
[1729464459172,0.1,166.56,166.45,18.02161335]
[1729464459383,0.1,166.56,166.46,2.70333353]
[1729464459569,11.2755,166.55,166.46,2.70333353]
[1729464460452,11.2755,166.55,166.46,11.99908032]
[1729464460679,11.2755,166.55,166.47,2.70333353]
[1729464461174,11.2755,166.55,166.48,2.70333353]
[1729464461370,11.2755,166.55,166.49,2.70333353]
[1729464461678,11.2755,166.55,166.5,2.70333353]
[1729464461978,11.2755,166.55,166.51,2.70333353]
[1729464462150,11.2755,166.55,166.52,2.70333353]
[1729464462349,11.3755,166.55,166.53,2.70333353]
[1729464462574,11.2755,166.55,166.42,6.9522359]
[1729464462760,11.2755,166.55,166.43,20.7302097]
[1729464462972,11.2755,166.55,166.44,2.70859635]
[1729464463278,11.2755,166.55,166.45,2.70894469]
[1729464463461,11.2755,166.55,166.45,11.43481125]
[1729464463662,11.2755,166.55,166.46,2.70894469]
[1729464464274,11.2755,166.55,166.47,20.73055804]
[1729464464452,11.2755,166.55,166.48,2.70894469]
[1729464464655,11.2755,166.55,166.49,2.70894469]
[1729464464656,27.8844,166.54,166.49,2.70894469]
[1729464464866,27.8844,166.54,166.5,2.70894469]
[1729464465181,27.8844,166.54,166.51,2.70894469]
[1729464465482,27.8844,166.54,166.41,13.22068821]
[1729464465682,27.8844,166.54,166.42,2.7098961]
[1729464465883,27.8844,166.54,166.43,2.7098961]
[1729464466075,27.8844,166.54,166.44,2.7098961]
[1729464466274,27.8844,166.54,166.45,2.7098961]
[1729464466486,27.8844,166.54,166.41,13.22068821]
[1729464466487,11.1075,166.5,166.41,6.26845231]
[1729464466784,11.1075,166.5,166.42,2.71046791]
[1729464466960,11.1075,166.5,166.43,2.71046791]
[1729464467156,11.1075,166.5,166.44,2.71046791]
[1729464467372,11.1075,166.5,166.45,2.71046791]
[1729464467585,11.1075,166.5,166.46,2.71046791]
[1729464467773,11.1075,166.5,166.47,2.71046791]
[1729464467972,11.1075,166.5,166.48,2.71046791]
[1729464468175,11.1075,166.5,166.49,2.71046791]
[1729464468487,11.1075,166.5,166.39,2.71046791]
[1729464468662,12.10838043,166.5,166.4,2.71046791]
[1729464468857,12.10838043,166.5,166.41,2.71046791]
[1729464469061,0.1,166.48,166.42,2.71046791]
[1729464469362,26.6038,166.49,166.43,2.71046791]
[1729464469575,26.6038,166.49,166.44,2.71046791]
[1729464469760,26.6038,166.49,166.38,6.26988737]
[1729464469761,26.6038,166.49,166.45,2.71046791]
[1729464469961,26.6038,166.49,166.46,2.71046791]
[1729464470160,26.6038,166.49,166.47,2.71046791]
[1729464470379,26.6038,166.49,166.48,2.71046791]
[1729464470583,26.6038,166.49,166.39,2.71046791]
[1729464470887,26.6038,166.49,166.4,2.71046791]
[1729464471081,26.6038,166.49,166.41,2.71046791]
[1729464471271,26.6038,166.49,166.42,3.91201058]
[1729464471590,26.6038,166.49,166.43,2.71046791]
[1729464471766,26.6038,166.49,166.44,18.91627017]
[1729464471963,26.6038,166.49,166.45,2.71046791]
[1729464472191,26.6038,166.49,166.45,10.62373694]
[1729464472482,0.90081187,166.53,166.44,8.29253323]
[1729464472483,25.5893,166.53,166.46,25.86850607]
[1729464472684,25.5893,166.53,166.47,2.71046791]
[1729464472864,25.5893,166.53,166.47,29.66270381]
[1729464473062,0.90057391,166.56,166.48,29.66270381]
[1729464473276,0.90057391,166.56,166.49,22.71046791]
[1729464473469,0.90057391,166.56,166.5,2.71198632]
[1729464473673,36.49,166.58,166.5,9.66422222]
[1729464473876,36.49,166.58,166.51,22.71198632]
[1729464474077,0.1,166.67,166.53,20.0]
[1729464474078,36.49,166.63,166.53,20.0]
[1729464474290,36.49,166.63,166.54,2.71198632]
[1729464474589,36.49,166.63,166.54,9.66422222]
[1729464474769,36.49,166.63,166.55,2.71198632]
[1729464475784,36.49,166.63,166.55,22.71198632]
[1729464475993,10.9007,166.67,166.56,40.11816426]
[1729464476291,10.9007,166.67,166.57,22.71198632]
[1729464476473,0.4123839,166.72,166.52,5.5766]
[1729464476474,0.3123839,166.72,166.63,20.0]
[1729464476673,0.3123839,166.72,166.64,2.71198632]
[1729464476988,0.3123839,166.72,166.65,30.19192202]
[1729464477167,0.3123839,166.72,166.66,30.4397001]
[1729464477368,0.3123839,166.72,166.67,2.71198632]
[1729464477988,0.3123839,166.72,166.68,2.71198632]
[1729464479496,0.3123839,166.72,166.7,20.0]
[1729464479782,0.3123839,166.72,166.71,2.69744679]
[1729464480365,11.8007943,166.81,166.71,2.69744679]
[1729464480571,11.8007943,166.81,166.72,2.69855977]
[1729464480772,11.8007943,166.81,166.73,2.69855977]
[1729464480975,11.3007943,166.81,166.74,2.69855977]
[1729464481175,11.3007943,166.81,166.7,20.0]
[1729464481176,11.3007943,166.81,166.75,2.69855977]
[1729464481396,11.3007943,166.81,166.76,2.69855977]
[1729464481563,11.3007943,166.81,166.77,2.69855977]
[1729464481767,11.3007943,166.81,166.78,2.69855977]
[1729464481967,11.3007943,166.81,166.72,20.0]
[1729464481968,11.3007943,166.81,166.79,2.69855977]
[1729464482182,11.3007943,166.81,166.72,20.0]
[1729464482403,11.5007943,166.81,166.73,2.6960525]
[1729464482590,11.5007943,166.81,166.74,2.6960525]
[1729464482887,0.1,166.8,166.75,2.6960525]
[1729464483089,0.1,166.8,166.59,5.7535]
[1729464483288,0.1,166.79,166.61,24.29]
[1729464483484,0.1,166.78,166.61,31.59160267]
[1729464483801,0.1,166.76,166.62,2.69905687]
[1729464484114,25.7995,166.74,166.62,2.69905687]
[1729464484386,0.1,166.73,166.62,2.69905687]
[1729464484593,0.1,166.69,166.63,2.69905687]
[1729464484775,0.1,166.66,166.48,6.25870279]
[1729464485090,10.6076,166.72,166.49,7.30160267]
[1729464485091,0.1,166.65,166.49,7.30160267]
[1729464485276,0.2,166.65,166.49,7.30160267]
[1729464485594,0.1,166.65,166.49,7.30160267]
[1729464485769,26.3008,166.62,166.49,7.30160267]
[1729464485969,26.4008,166.62,166.49,7.30160267]
[1729464486196,26.2008,166.62,166.49,7.30160267]
[1729464486490,26.2008,166.71,166.52,0.1]
[1729464486669,26.2008,166.71,166.53,22.7190716]
[1729464486869,26.2008,166.71,166.54,1.19994105]
[1729464487078,26.2008,166.71,166.56,20.0]
[1729464487380,26.2008,166.71,166.58,20.0]
[1729464487579,26.2008,166.71,166.6,20.0]
[1729464487782,26.2008,166.71,166.6,27.30160267]
[1729464488169,26.2008,166.71,166.61,7.30160267]
[1729464490192,26.2008,166.71,166.62,20.0]